bitfinex/quotes_BTCUSD_20250422
["timestamp","ask_amount","ask_price","bid_price","bid_amount"]
[1745334121067,0.0898024,90901.0,90876.0,0.34]
[1745334121280,0.11375594,90900.0,90876.0,0.34013789]
[1745334123034,0.02718047,90909.0,90891.0,0.34]
[1745334123211,0.02718047,90909.0,90900.0,0.34]
[1745334123362,0.02718047,90909.0,90902.0,0.34]
[1745334123960,0.02718047,90909.0,90903.0,0.00219989]
[1745334124302,0.02718047,90909.0,90904.0,0.11375594]
[1745334124524,0.02718047,90909.0,90905.0,0.05189967]
[1745334124735,0.02718047,90909.0,90907.0,0.34]
[1745334124937,0.0004237,90914.0,90909.0,0.34]
[1745334125148,0.0004237,90914.0,90911.0,0.34]
[1745334125351,0.0004237,90914.0,90913.0,0.34]
[1745334125557,0.0004237,90914.0,90913.0,0.46829679]
[1745334125984,0.04660812,90919.0,90914.0,0.01454085]
[1745334126207,0.04660812,90919.0,90916.0,0.35454085]
[1745334126410,0.04660812,90919.0,90918.0,0.35454085]
[1745334126616,0.011477,90929.0,90918.0,0.46829679]
[1745334126828,0.01161489,90929.0,90920.0,0.35454085]
[1745334127039,0.01161489,90929.0,90922.0,0.35454085]
[1745334127252,0.01161489,90929.0,90924.0,0.12829679]
[1745334127460,0.01161489,90929.0,90926.0,0.01454085]
[1745334127665,0.01161489,90929.0,90928.0,0.35454085]
[1745334127876,0.01161489,90929.0,90928.0,0.45375594]
[1745334128298,0.01161489,90929.0,90928.0,0.34]
[1745334128709,0.00761489,90929.0,90928.0,0.34]
[1745334128888,0.00761489,90929.0,90920.0,0.34]
[1745334130138,0.00761489,90929.0,90921.0,0.00219945]
[1745334130295,0.00761489,90929.0,90922.0,0.34]
[1745334130496,0.00761489,90929.0,90923.0,0.00219938]
[1745334131074,0.00761489,90929.0,90922.0,0.34]
[1745334131400,0.00761489,90929.0,90924.0,0.00219939]
[1745334131772,0.00761489,90929.0,90921.0,0.00219944]
[1745334131969,0.00761489,90929.0,90920.0,0.34]
[1745334133211,0.00761489,90929.0,90919.0,0.58903778]
[1745334133418,0.00761489,90929.0,90920.0,0.45595541]
[1745334133532,0.00761489,90929.0,90920.0,0.45375594]
[1745334135847,0.00761489,90929.0,90921.0,0.0021994]
[1745334136053,0.00761489,90929.0,90922.0,0.34]
[1745334136593,0.00361489,90929.0,90922.0,0.34]
[1745334138581,0.00361489,90929.0,90924.0,0.34]
[1745334138850,0.00361489,90929.0,90925.0,0.00219932]
[1745334139054,0.00361489,90929.0,90924.0,0.45375594]
[1745334139603,0.00361489,90929.0,90924.0,0.11375594]
[1745334139814,0.00361489,90929.0,90925.0,0.00219933]
[1745334140419,0.00361489,90929.0,90926.0,0.11375594]
[1745334140653,0.00351489,90929.0,90927.0,0.00219913]
[1745334140853,0.00351489,90929.0,90928.0,0.11375594]
[1745334141277,0.001,90949.0,90928.0,0.11375594]
[1745334141278,0.001,90949.0,90929.0,0.01454085]
[1745334141551,0.001,90949.0,90945.0,0.46829679]
[1745334141719,0.001,90949.0,90945.0,0.51549679]
[1745334141979,0.00733342,90955.0,90947.0,0.01454085]
[1745334142184,0.01,90970.0,90961.0,0.35454085]
[1745334142386,0.01,90970.0,90968.0,0.01454085]
[1745334142512,0.01,90970.0,90969.0,0.46829679]
[1745334142513,0.01045973,90970.0,90969.0,0.46829679]
[1745334142714,0.01045973,90970.0,90969.0,0.33205396]
[1745334142917,0.01045973,90970.0,90960.0,0.58903778]
[1745334143304,0.01045973,90970.0,90961.0,0.11595438]
[1745334143547,0.01045973,90970.0,90961.0,0.11375594]
[1745334143759,0.01045973,90970.0,90960.0,0.60569921]
[1745334143923,0.01045973,90970.0,90960.0,0.01666143]
[1745334144127,0.01045973,90970.0,90950.0,0.58903778]
[1745334144348,0.00845973,90970.0,90950.0,0.60564822]
[1745334145044,0.00845973,90970.0,90960.0,0.58903778]
[1745334145721,0.00845973,90970.0,90950.0,0.58903778]
[1745334145861,0.00845973,90970.0,90960.0,0.58903778]
[1745334146424,0.00845973,90970.0,90961.0,0.34219861]
[1745334146563,0.00845973,90970.0,90961.0,0.34]
[1745334147173,0.00845973,90970.0,90962.0,0.00219837]
[1745334147604,0.00845973,90970.0,90964.0,0.34]
[1745334147777,0.00845973,90970.0,90966.0,0.34]
[1745334147982,0.00845973,90970.0,90968.0,0.34]
[1745334149481,0.00845973,90970.0,90963.0,0.4167]
[1745334149482,0.00845973,90970.0,90964.0,0.34]
[1745334150015,0.00845973,90970.0,90920.0,0.58903778]
[1745334150016,0.00845973,90970.0,90951.0,0.4167]
[1745334150546,0.00845973,90970.0,90952.0,0.11375594]
[1745334150760,0.00845973,90970.0,90960.0,0.58903778]
[1745334151124,0.00845973,90970.0,90961.0,0.45375594]
[1745334152031,0.00845973,90970.0,90963.0,0.34]
[1745334152032,0.00145973,90970.0,90963.0,0.34]
[1745334152234,0.00145973,90970.0,90965.0,0.34]
[1745334152899,0.00145973,90970.0,90967.0,0.34]
[1745334153083,0.00145973,90970.0,90969.0,0.34]
[1745334153303,0.00145973,90970.0,90969.0,0.87045594]
[1745334154303,0.00145973,90970.0,90969.0,0.7567]
[1745334155899,0.00145973,90970.0,90969.0,0.87045594]
[1745334156523,0.00145973,90970.0,90969.0,0.7567]
[1745334157376,0.21986126,90967.0,90925.0,0.0483]
[1745334157523,0.0109936,90962.0,90930.0,0.58903778]
[1745334157725,0.12474966,90961.0,90930.0,0.58903778]
[1745334157933,0.11782986,90961.0,90915.0,0.03113969]
[1745334158093,0.11782986,90961.0,90951.0,0.58903778]
[1745334158298,0.00542819,90961.0,90931.0,0.03113969]
[1745334158497,0.01099311,90966.0,90940.0,0.58903778]
[1745334158702,0.01099348,90963.0,90930.0,0.58903778]
[1745334158975,0.11375594,90962.0,90931.0,0.00219917]
[1745334159178,0.11375594,90962.0,90940.0,0.58903778]
[1745334159464,0.00541549,90961.0,90932.0,0.34]
[1745334159599,0.00045973,90970.0,90951.0,0.34]
[1745334159815,0.11375594,90969.0,90960.0,0.58903778]
[1745334160018,0.0040639,90968.0,90961.0,0.34]
[1745334160221,0.00045973,90970.0,90961.0,0.34]
[1745334160421,0.21986236,90966.0,90934.0,0.34]
[1745334160715,0.11781151,90965.0,90940.0,0.58903778]
[1745334160922,0.1191871,90965.0,90940.0,0.58903778]
[1745334161123,0.11375594,90965.0,90940.0,0.58903778]
[1745334161347,0.11375594,90965.0,90950.0,0.58903778]
[1745334161964,0.11375594,90965.0,90941.0,0.34]
[1745334162731,0.00405886,90964.0,90941.0,0.34]
[1745334162910,0.11375594,90963.0,90941.0,0.34]
[1745334163111,0.11389369,90963.0,90941.0,0.34]
[1745334163749,0.02048387,90962.0,90951.0,0.34]
[1745334163960,0.02048387,90962.0,90953.0,0.34]
[1745334164596,0.00013775,90963.0,90953.0,0.34]
[1745334165997,0.00013775,90963.0,90941.0,0.34]
[1745334166195,0.00013775,90963.0,90951.0,0.34]
[1745334167269,0.00013775,90963.0,90931.0,0.4167]
[1745334167270,0.11389369,90963.0,90931.0,0.4167]
[1745334167424,0.11389369,90963.0,90950.0,0.58903778]
[1745334167624,0.00404756,90962.0,90950.0,0.58903778]
[1745334167848,0.02050317,90961.0,90951.0,0.34]
[1745334168051,0.00013775,90963.0,90951.0,0.34]
[1745334168614,0.02050816,90962.0,90951.0,0.34]
[1745334169181,0.00013775,90963.0,90941.0,0.34]
[1745334169389,0.00013775,90963.0,90951.0,0.34]
[1745334170578,0.11375594,90962.0,90951.0,0.34]
[1745334171611,0.11375594,90962.0,90933.0,0.34]
[1745334171864,0.11375594,90962.0,90941.0,0.34]
[1745334172667,0.11375594,90962.0,90933.0,0.11375594]
[1745334172959,0.11375594,90962.0,90941.0,0.34]
[1745334173154,0.00535964,90961.0,90951.0,0.34]
[1745334173356,0.11375594,90962.0,90951.0,0.34]
[1745334173745,0.16357114,90961.0,90951.0,0.34]
[1745334173987,0.16357114,90961.0,90941.0,0.34]
[1745334174413,0.15955594,90961.0,90941.0,0.34]
[1745334174657,0.00401242,90960.0,90941.0,0.34]
[1745334174870,0.11375594,90959.0,90941.0,0.34]
[1745334175072,0.11375594,90959.0,90930.0,0.01682006]
[1745334175277,0.00400687,90958.0,90931.0,0.34]
[1745334175497,0.11375594,90957.0,90931.0,0.34]
[1745334175920,0.11375594,90957.0,90941.0,0.34]
[1745334176540,0.0458,90961.0,90941.0,0.34]
[1745334176802,0.11375594,90960.0,90951.0,0.34]
[1745334177014,0.00013775,90963.0,90951.0,0.34]
[1745334177218,0.11375594,90962.0,90951.0,0.34]
[1745334177832,0.11375594,90962.0,90941.0,0.34]
[1745334178042,0.00013775,90963.0,90941.0,0.34]
[1745334178250,0.00692151,90961.0,90951.0,0.34]
[1745334178455,0.00013775,90963.0,90951.0,0.34]
[1745334180839,0.00013775,90963.0,90960.0,0.000328]
[1745334182881,0.02089921,90974.0,90960.0,0.000328]
[1745334183095,0.00473497,90973.0,90961.0,0.34]
[1745334183328,0.02089921,90974.0,90961.0,0.34]
[1745334184159,0.02089921,90974.0,90960.0,0.58982551]
[1745334186112,0.02089921,90974.0,90962.0,0.34]
[1745334187248,0.02089921,90974.0,90965.0,0.34]
[1745334189204,0.02089921,90974.0,90962.0,0.34]
[1745334190574,0.01389921,90974.0,90962.0,0.34]
[1745334191196,0.01389921,90974.0,90960.0,0.00078773]
[1745334191197,0.095,90972.0,90960.0,0.00078773]
[1745334191392,0.11375594,90971.0,90960.0,0.00078773]
[1745334191637,0.11859483,90971.0,90960.0,0.39183309]
[1745334191843,0.00483889,90971.0,90960.0,0.39183309]
[1745334192211,0.01389921,90974.0,90961.0,0.34]
[1745334193386,0.01389921,90974.0,90960.0,0.001328]
[1745334193533,0.01389921,90974.0,90961.0,0.34]
[1745334194218,0.11375594,90973.0,90961.0,0.34]
[1745334194555,0.00483479,90972.0,90960.0,0.001328]
[1745334194757,0.11375594,90971.0,90960.0,0.001328]
[1745334195156,0.00481343,90970.0,90960.0,0.001328]
[1745334195358,0.11375594,90969.0,90960.0,0.001328]
[1745334195747,0.00480603,90968.0,90960.0,0.001328]
[1745334196371,0.001,90973.0,90960.0,0.001328]
[1745334196800,0.11375594,90972.0,90960.0,0.001328]
[1745334197018,0.11375594,90972.0,90961.0,0.34]
[1745334197183,0.00481712,90971.0,90961.0,0.34]
[1745334197380,0.001,90973.0,90961.0,0.34]
[1745334197578,0.00361007,90970.0,90961.0,0.34]
[1745334197788,0.001,90973.0,90961.0,0.34]
[1745334198528,0.00789921,90974.0,90961.0,0.34]
[1745334198722,0.00789921,90974.0,90960.0,0.001328]
[1745334198945,0.0036121,90973.0,90965.0,0.34]
[1745334199299,0.00789921,90974.0,90965.0,0.34]
[1745334199921,0.00789921,90974.0,90960.0,0.78341872]
[1745334199922,0.00789921,90974.0,90961.0,0.34]
[1745334200554,0.00789921,90974.0,90965.0,0.34]
[1745334203442,0.00789921,90974.0,90962.0,0.4167]
[1745334203638,0.00789921,90974.0,90965.0,0.34]
[1745334204462,0.15975594,90973.0,90962.0,0.4167]
[1745334204891,0.00429401,90972.0,90963.0,0.34]
[1745334205448,0.00789921,90974.0,90963.0,0.34]
[1745334206076,0.00089921,90974.0,90963.0,0.34]
[1745334209859,0.00089921,90974.0,90963.0,0.339]
[1745334209993,0.00089921,90974.0,90970.0,0.00189124]
[1745334210188,0.00430346,90973.0,90970.0,0.00189124]
[1745334210842,0.00430346,90973.0,90970.0,0.00343151]
[1745334211104,0.00638732,90973.0,90970.0,0.00343151]
[1745334212135,0.00192032,90973.0,90970.0,0.00343151]
[1745334212273,0.00642878,90973.0,90970.0,0.00343151]
[1745334212475,0.00089921,90974.0,90970.0,0.00343151]
[1745334213938,0.04350477,90980.0,90971.0,0.34]
[1745334215381,0.04350477,90980.0,90970.0,0.00343151]
[1745334215671,0.04350477,90980.0,90971.0,0.34]
[1745334216237,0.04350477,90980.0,90970.0,0.39447687]
[1745334216238,0.11375594,90979.0,90970.0,0.00343151]
[1745334216902,0.0948,90972.0,90970.0,0.00343151]
[1745334217126,0.11375594,90971.0,90970.0,0.00343151]
[1745334220017,0.0472,90972.0,90970.0,0.00343151]
[1745334220204,0.11375594,90972.0,90970.0,0.00343151]
[1745334220395,0.04350477,90980.0,90970.0,0.00343151]
[1745334220599,0.04350477,90980.0,90970.0,0.39447687]
[1745334220600,0.11375594,90979.0,90970.0,0.39447687]
[1745334220834,0.11375594,90979.0,90970.0,0.00343151]
[1745334221594,0.10675594,90979.0,90970.0,0.00343151]
[1745334222043,0.01099227,90973.0,90970.0,0.00343151]
[1745334222290,0.24771253,90971.0,90970.0,0.00189124]
[1745334222605,0.045,90956.0,90930.0,0.01627979]
[1745334222807,0.11375594,90954.0,90940.0,0.39104536]
[1745334223150,0.11375594,90953.0,90941.0,0.34]
[1745334223374,0.11375594,90953.0,90944.0,0.34]
[1745334223929,0.0467,90960.0,90944.0,0.34]
[1745334223930,0.11375594,90952.0,90944.0,0.34]
[1745334224075,0.00824477,90961.0,90930.0,0.01782006]
[1745334224076,0.11375594,90946.0,90930.0,0.01782006]
[1745334224448,0.11375594,90946.0,90936.0,0.39104536]
[1745334224608,0.045,90951.0,90930.0,0.01782006]
[1745334224802,0.045,90951.0,90937.0,0.34]
[1745334225006,0.045,90951.0,90936.0,0.39104536]
[1745334225226,0.045,90964.0,90936.0,0.39104536]
[1745334225559,0.11375594,90963.0,90930.0,0.01782006]
[1745334225757,0.08895659,90956.0,90930.0,0.01782006]
[1745334225871,0.08895659,90944.0,90930.0,0.00238627]
[1745334226076,0.26659012,90955.0,90930.0,0.00238627]
[1745334226077,0.11375594,90943.0,90930.0,0.39343163]
[1745334226272,0.0467,90955.0,90933.0,0.39104536]
[1745334226526,0.11375594,90954.0,90940.0,0.39104536]
[1745334227118,0.0467,90973.0,90941.0,0.34]
[1745334227363,0.11375594,90972.0,90963.0,0.39104536]
[1745334227680,0.00045936,90976.0,90963.0,0.39104536]
[1745334227888,0.11375594,90975.0,90964.0,0.34]
[1745334229271,0.10675594,90975.0,90964.0,0.34]
[1745334230993,0.10675594,90975.0,90952.0,0.0497]
[1745334231199,0.10675594,90975.0,90961.0,0.34]
[1745334232705,0.10675594,90975.0,90953.0,0.34]
[1745334232906,0.10675594,90975.0,90961.0,0.34]
[1745334233753,0.08895659,90972.0,90961.0,0.34]
[1745334233952,0.11375594,90971.0,90953.0,0.34]
[1745334234152,0.11375594,90971.0,90961.0,0.34]
[1745334235093,0.02051671,90970.0,90961.0,0.34]
[1745334235211,0.11375594,90969.0,90961.0,0.34]
[1745334235414,0.11375594,90969.0,90953.0,0.34]
[1745334236006,0.11375594,90969.0,90960.0,0.34]
[1745334236989,0.10675594,90969.0,90960.0,0.34]
[1745334238808,0.08895659,90967.0,90930.0,0.01703717]
[1745334239007,0.11375594,90964.0,90940.0,0.39104536]
[1745334239204,0.11375594,90964.0,90950.0,0.39104536]
[1745334239604,0.11375594,90964.0,90919.0,0.36248]
[1745334239834,0.14348719,90964.0,90930.0,0.39104536]
[1745334240046,0.14348719,90964.0,90931.0,0.34]
[1745334240217,0.08895659,90956.0,90940.0,0.39104536]
[1745334240424,0.11375594,90955.0,90940.0,0.39104536]
[1745334241027,0.11375594,90955.0,90941.0,0.34]
[1745334241976,0.01099178,90977.0,90942.0,0.04949925]
[1745334241977,0.0477,90977.0,90942.0,0.04949925]
[1745334242096,0.11375594,90975.0,90960.0,0.39104536]
[1745334242312,0.11375594,90975.0,90951.0,0.34]
[1745334242526,0.11375594,90975.0,90961.0,0.34]
[1745334242935,0.04450477,90980.0,90961.0,0.34]
[1745334243135,0.04450477,90980.0,90967.0,0.34]
[1745334244854,0.04450477,90980.0,90966.0,0.39104536]
[1745334244855,0.11375594,90975.0,90961.0,0.4167]
[1745334245025,0.11349925,90975.0,90962.0,0.34]
[1745334246077,0.11349925,90975.0,90961.0,0.34045936]
[1745334246957,0.0477,90974.0,90961.0,0.34045936]
[1745334247152,0.11375594,90973.0,90961.0,0.34045936]
[1745334247314,0.0469,90972.0,90961.0,0.00045936]
[1745334247526,0.11375594,90971.0,90961.0,0.00045936]
[1745334247776,0.08895659,90969.0,90961.0,0.00045936]
[1745334247925,0.11375594,90968.0,90961.0,0.00045936]
[1745334249119,0.03796413,90980.0,90961.0,0.00045936]
[1745334249328,0.11375594,90978.0,90970.0,0.34]
[1745334249518,0.03796413,90980.0,90970.0,0.34]
[1745334250529,0.03796413,90980.0,90970.0,0.3873]
[1745334252462,0.03096413,90980.0,90970.0,0.3873]
[1745334252670,0.03096413,90980.0,90972.0,0.34]
[1745334252826,0.03096413,90980.0,90974.0,0.34]
[1745334253029,0.03096413,90980.0,90976.0,0.34]
[1745334254135,0.0004231,90999.0,90978.0,0.34]
[1745334254336,0.08895659,90999.0,90989.0,0.78209072]
[1745334254563,0.003894,91002.0,90989.0,0.78209072]
[1745334254564,0.003894,91002.0,90990.0,0.34]
[1745334254772,0.21144027,91000.0,90990.0,0.34]
[1745334255184,0.16448717,91000.0,90994.0,0.46829679]
[1745334255350,0.00187379,91037.0,90996.0,0.0784]
[1745334255566,0.02805609,91038.0,91029.0,0.34]
[1745334255773,0.02805609,91038.0,91030.0,0.00219668]
[1745334255979,0.02805609,91038.0,91031.0,0.0457]
[1745334256372,0.0005,91061.0,91038.0,0.01454085]
[1745334256593,0.0005,91061.0,91052.0,0.45375594]
[1745334256791,0.0005,91061.0,91052.0,0.46829679]
[1745334257004,0.07863246,91071.0,91053.0,0.34]
[1745334257218,0.07863246,91071.0,91054.0,0.01673662]
[1745334257456,0.07863246,91071.0,91061.0,0.01454085]
[1745334257671,0.07863246,91071.0,91060.0,0.34]
[1745334257672,0.00145899,91069.0,91063.0,0.01454085]
[1745334257881,0.03619829,91071.0,91065.0,0.01454085]
[1745334258082,0.03619829,91071.0,91067.0,0.01454085]
[1745334258083,0.00013761,91071.0,91067.0,0.01454085]
[1745334258291,0.00052268,91087.0,91071.0,0.35454085]
[1745334258492,0.00052268,91087.0,91077.0,0.58502195]
[1745334258716,0.08895659,91086.0,91078.0,0.11375594]
[1745334258918,0.08895659,91086.0,91079.0,0.11375594]
[1745334259125,0.08895659,91086.0,91076.0,0.58502195]
[1745334259126,0.00546517,91085.0,91076.0,0.58502195]
[1745334259345,0.00546517,91085.0,91077.0,0.00142031]
[1745334259551,0.00052268,91087.0,91080.0,0.03005086]
[1745334259767,0.001,91129.0,91082.0,0.013]
[1745334259988,0.001,91129.0,91083.0,0.01454085]
[1745334260196,0.001,91129.0,91084.0,0.01454085]
[1745334260197,0.00584844,91098.0,91084.0,0.01454085]
[1745334260401,0.02844729,91103.0,91084.0,0.01454085]
[1745334260605,0.00391347,91098.0,91094.0,0.35454085]
[1745334260814,0.02844729,91103.0,91095.0,0.11375594]
[1745334261022,0.02858488,91103.0,91097.0,0.01454085]
[1745334261254,0.02858488,91103.0,91099.0,0.34]
[1745334261463,0.02858488,91103.0,91102.0,0.01454085]
[1745334261666,0.02858488,91103.0,91101.0,0.34]
[1745334262531,0.02858488,91103.0,91075.0,0.08895659]
[1745334262745,0.02858488,91103.0,91077.0,0.34]
[1745334262991,0.02858488,91103.0,91078.0,0.01454085]
[1745334263417,0.01097369,91127.0,91078.0,0.01454085]
[1745334263714,0.12139732,91126.0,91080.0,0.34]
[1745334263936,0.12139732,91126.0,91083.0,0.01454085]
[1745334264344,0.12139732,91126.0,91085.0,0.01454085]
[1745334264548,0.00764138,91126.0,91085.0,0.01454085]
[1745334264753,0.00764138,91126.0,91104.0,0.08895659]
[1745334264954,0.11375594,91125.0,91095.0,0.34]
[1745334265163,0.00764138,91126.0,91096.0,0.01454085]
[1745334265381,0.00699482,91124.0,91102.0,0.01454085]
[1745334265586,0.00524888,91125.0,91104.0,0.35454085]
[1745334265783,0.00528901,91123.0,91106.0,0.34]
[1745334266090,0.001,91129.0,91107.0,0.12829679]
[1745334266311,0.001,91129.0,91108.0,0.34]
[1745334266502,0.00469597,91128.0,91110.0,0.92502195]
[1745334266822,0.00469597,91128.0,91118.0,0.001]
[1745334267054,1.0,91130.0,91095.0,0.08895659]
[1745334267055,0.73605096,91130.0,91129.0,0.01454085]
[1745334267287,0.73605096,91130.0,91129.0,0.47573588]
[1745334267502,0.73605096,91130.0,91129.0,0.46119503]
[1745334267691,0.73605096,91130.0,91129.0,0.49037849]
[1745334267968,0.68205096,91130.0,91129.0,0.49037849]
[1745334268176,0.67505096,91130.0,91129.0,0.3620817]
[1745334268914,0.67505096,91130.0,91129.0,0.49687022]
[1745334269117,0.67505096,91130.0,91129.0,0.49718477]
[1745334269299,0.67505096,91130.0,91129.0,0.4829394]
[1745334269507,0.66505096,91130.0,91129.0,0.46839855]
[1745334269700,0.66505096,91130.0,91129.0,0.35464261]
[1745334270141,0.58738726,91130.0,91129.0,0.47579258]
[1745334270352,0.58738726,91130.0,91129.0,0.49033343]
[1745334270574,0.58738726,91130.0,91129.0,0.5538079]
[1745334270784,0.58738726,91130.0,91129.0,0.47579258]
[1745334271005,0.58738726,91130.0,91129.0,0.47575258]
[1745334271204,0.58738726,91130.0,91129.0,0.36199664]
[1745334271418,0.58738726,91130.0,91129.0,0.35460261]
[1745334271643,0.58738726,91130.0,91129.0,0.01464261]
[1745334271793,0.58738726,91130.0,91129.0,0.11375594]
[1745334271994,0.58738726,91130.0,91129.0,0.12891336]
[1745334272197,0.58738726,91130.0,91129.0,0.14345421]
[1745334272408,0.58738726,91130.0,91129.0,0.18125166]
[1745334272612,0.57661472,91130.0,91129.0,0.15184231]
[1745334272820,0.57661472,91130.0,91129.0,0.13230146]
[1745334273189,0.54341472,91130.0,91129.0,0.13230146]
[1745334273439,0.54341472,91130.0,91129.0,0.02354552]
[1745334273631,0.54341472,91130.0,91129.0,0.49184231]
[1745334273833,0.54341472,91130.0,91129.0,0.52225166]
[1745334274074,0.54341472,91130.0,91129.0,0.50771081]
[1745334274278,0.54341472,91130.0,91129.0,0.47730146]
[1745334274479,0.54832684,91130.0,91129.0,0.49184231]
[1745334274792,0.54832684,91130.0,91129.0,0.50771081]
[1745334274919,0.54832684,91130.0,91129.0,0.36354552]
[1745334275145,0.08178267,91130.0,91129.0,0.49184231]
[1745334275314,0.0004233,91167.0,91133.0,0.001]
[1745334275520,0.00056091,91167.0,91141.0,0.11079067]
[1745334275767,0.02264036,91168.0,91150.0,0.58502195]
[1745334275942,0.02309853,91168.0,91141.0,0.11079067]
[1745334276142,0.02309853,91168.0,91153.0,0.08895659]
[1745334276343,0.02309853,91168.0,91154.0,0.06271342]
[1745334276561,0.02309853,91168.0,91158.0,0.58502195]
[1745334276747,0.02309853,91168.0,91159.0,0.07200152]
[1745334277374,0.02309853,91168.0,91160.0,0.0073881]
[1745334277574,0.02309853,91168.0,91161.0,0.17836936]
[1745334277824,0.02309853,91168.0,91165.0,0.01096912]
[1745334278007,0.02309853,91168.0,91167.0,0.21937762]
[1745334278244,0.02309853,91168.0,91167.0,0.29137914]
[1745334278651,0.02309853,91168.0,91167.0,0.28399104]
[1745334278975,0.02309853,91168.0,91167.0,0.36616043]
[1745334279178,0.02309853,91168.0,91167.0,0.40472031]
[1745334279636,0.001,91189.0,91171.0,0.219368]
[1745334279936,0.001,91189.0,91171.0,0.37354623]
[1745334280188,0.001,91189.0,91171.0,0.00739542]
[1745334280361,0.001,91189.0,91138.0,0.01097237]
[1745334280362,0.01097032,91155.0,91138.0,0.01097237]
[1745334280677,0.0469,91151.0,91140.0,0.01097213]
[1745334280803,0.0469,91151.0,91148.0,0.23039361]
[1745334280998,0.0469,91151.0,91148.0,0.01097116]
[1745334281219,0.0469,91151.0,91149.0,0.21942094]
[1745334281624,0.0469,91151.0,91129.0,0.19898817]
[1745334281625,0.01045375,91132.0,91129.0,0.19898817]
[1745334281848,0.0109761,91107.0,91101.0,0.001]
[1745334282052,0.21953173,91103.0,91101.0,0.001]
[1745334282248,0.21953173,91103.0,91101.0,0.00113761]
[1745334282482,0.11375594,91102.0,91101.0,0.00113761]
[1745334282909,0.11210425,91102.0,91101.0,0.00113761]
[1745334283122,0.11210425,91102.0,91101.0,0.22067416]
[1745334283577,0.12541833,91102.0,91101.0,0.22067416]
[1745334284159,0.10510425,91102.0,91101.0,0.22067416]
[1745334284967,0.10510425,91102.0,91101.0,0.00113761]
[1745334285164,0.12541875,91102.0,91101.0,0.00113761]
[1745334285431,0.12541875,91102.0,91101.0,0.22067416]
[1745334285837,0.0203145,91102.0,91101.0,0.22067416]
[1745334286080,0.001,91107.0,91106.0,0.5595245]
[1745334286740,0.94094345,91160.0,91106.0,0.5595245]
[1745334286741,0.0467,91158.0,91155.0,0.23037622]
[1745334286945,0.0469,91170.0,91169.0,0.21937281]
[1745334287249,0.16065594,91170.0,91163.0,0.21938488]
[1745334287457,0.01097032,91155.0,91137.0,0.01097249]
[1745334287656,0.01097104,91149.0,91135.0,0.21945332]
[1745334287860,0.01097128,91147.0,91135.0,0.21945332]
[1745334288061,0.11375594,91146.0,91138.0,0.21944719]
[1745334288288,0.11375594,91146.0,91133.0,0.21945947]
[1745334288496,0.01097273,91135.0,91122.0,0.01097429]
[1745334288696,0.01097237,91138.0,91130.0,0.21946335]
[1745334288697,0.11375594,91134.0,91130.0,0.21946335]
[1745334288900,0.0467,91138.0,91137.0,0.21944983]
[1745334289106,0.17064878,91138.0,91137.0,0.21944983]
[1745334289536,0.01019284,91138.0,91137.0,0.21944983]
[1745334289681,0.01019284,91138.0,91137.0,0.55958744]
[1745334289882,0.0004231,91167.0,91166.0,0.21938003]
[1745334290212,0.0004231,91167.0,91166.0,0.55938003]
[1745334290421,0.0004231,91167.0,91164.0,0.23035299]
[1745334290795,0.11375594,91166.0,91164.0,0.21938375]
[1745334291253,0.11421411,91166.0,91164.0,0.21938375]
[1745334291529,0.11421411,91166.0,91165.0,0.21938243]
[1745334291724,0.11421411,91166.0,91164.0,0.001]
[1745334291896,0.10221411,91166.0,91164.0,0.001]
[1745334292106,0.10221411,91166.0,91165.0,0.21938243]
[1745334292894,0.02457001,91166.0,91165.0,0.21938243]
[1745334293209,0.02457001,91166.0,91136.0,0.21945175]
[1745334293210,0.0469,91149.0,91136.0,0.21945175]
[1745334293410,0.11375594,91148.0,91140.0,0.01097213]
[1745334293527,0.11375594,91148.0,91139.0,0.01097225]
[1745334293747,0.11375594,91148.0,91140.0,0.23041474]
[1745334293950,0.11375594,91148.0,91144.0,0.01097164]
[1745334294173,0.11375594,91148.0,91147.0,0.21942576]
[1745334294375,0.11375594,91148.0,91142.0,0.01097189]
[1745334294818,0.11375594,91148.0,91139.0,0.01097225]
[1745334295233,0.11375594,91148.0,91140.0,0.01097213]
[1745334295445,0.11375594,91148.0,91142.0,0.2194378]
[1745334295580,0.11375594,91148.0,91141.0,0.01097201]
[1745334295982,0.01097176,91143.0,91130.0,0.2304388]
[1745334296238,0.11375594,91142.0,91138.0,0.01097237]
[1745334296578,0.11375594,91142.0,91135.0,0.01097273]
[1745334296781,0.11375594,91142.0,91136.0,0.01097261]
[1745334296993,0.11375594,91137.0,91125.0,0.21947873]
[1745334297196,0.01097381,91126.0,91111.0,0.01097562]
[1745334297399,0.01097369,91127.0,91111.0,0.01097562]
[1745334297400,0.01097429,91122.0,91111.0,0.01097562]
[1745334297715,0.01097429,91122.0,91106.0,0.22052399]
[1745334297716,0.01097477,91118.0,91108.0,0.01097598]
[1745334297967,0.11375594,91117.0,91114.0,0.23048049]
[1745334298141,0.11235595,91117.0,91107.0,0.23049598]
[1745334298434,0.11235595,91117.0,91111.0,0.01097562]
[1745334298638,0.0467,91127.0,91124.0,0.01097405]
[1745334298839,0.11375594,91126.0,91118.0,0.01097477]
[1745334299060,0.0467,91146.0,91127.0,0.01097369]
[1745334299281,0.00807658,91153.0,91135.0,0.21945465]
[1745334299465,0.00807658,91153.0,91134.0,0.01097285]
[1745334299689,0.00807658,91153.0,91132.0,0.01097309]
[1745334299690,0.02038246,91136.0,91132.0,0.01097309]
[1745334299990,0.10675594,91135.0,91134.0,0.21945706]
[1745334300271,0.02038246,91135.0,91134.0,0.21945706]
[1745334300626,0.02038246,91135.0,91134.0,0.21959467]
[1745334301044,0.0109714,91146.0,91134.0,0.00013761]
[1745334301244,0.13679505,91145.0,91137.0,0.21944902]
[1745334301428,0.13413255,91145.0,91141.0,0.21943883]
[1745334301632,0.13413255,91145.0,91138.0,0.2194452]
[1745334301909,0.02037661,91144.0,91138.0,0.2194452]
[1745334302044,0.11375594,91143.0,91140.0,0.21944257]
[1745334302246,0.02037661,91142.0,91140.0,0.21944257]
[1745334302469,0.11375594,91141.0,91140.0,0.21944257]
[1745334302671,0.13413255,91141.0,91134.0,0.00013761]
[1745334302867,0.21945465,91135.0,91134.0,0.00013761]
[1745334303048,0.38011059,91135.0,91134.0,0.00013761]
[1745334303256,0.41067674,91135.0,91134.0,0.00013761]
[1745334303459,0.19122209,91135.0,91134.0,0.00013761]
[1745334304158,0.19200528,91135.0,91123.0,0.23045693]
[1745334304368,0.13413255,91134.0,91123.0,0.01097417]
[1745334304568,0.13413255,91134.0,91124.0,0.01097405]